[Event "Vienna Chess Open 2019"]
[Site "Vienna"]
[Date "2019.08.18"]
[Round "2.4"]
[White "Blohberger, Felix"]
[Black "Ganaus, Hannes"]
[Result "1-0"]
[ECO "B10"]
[WhiteElo "2467"]
[BlackElo "2229"]
[Annotator "ChessBase"]
[PlyCount "81"]
[EventDate "2019.08.17"]
[EventType "swiss"]
[EventCountry "AUT"]
[SourceTitle "playchess.com"]
[Source "ChessBase"]
[SourceQuality "1"]
[TimeControl "40/5400+30:1800+30"]

1. e4 {[%emt 0:00:00]} c6 {[%emt 0:00:11]} 2. Nf3 {[%emt 0:00:00]} d5 {[%emt 0:00:30]} 3. Nc3 {[%emt 0:00:00]} dxe4 {[%emt 0:00:21]} 4. Nxe4 {[%emt 0:00:00]} Nf6 {[%emt 0:00:05]} 5. Qe2 {[%emt 0:00:02]} Bg4 {[%emt 0:00:41]} 6. h3 {[%emt 0:00:10]} Bh5 {[%emt 0:00:31]} 7. Nxf6+ {[%emt 0:00:17]} gxf6 {[%emt 0:00:03]} 8. d3 {[%emt 0:00:37]} Na6 {[%emt 0:03:50]} 9. Bd2 {[%emt 0:05:26]} Qb6 {[%emt 0:01:49]} 10. Bc3 {[%emt 0:04:47]} O-O-O {[%emt 0:01:56]} 11. Qe3 {[%emt 0:05:38]} Bxf3 {[%emt 0:11:08]} 12. Qxf3 {[%emt 0:00:57]} Nc7 {[%emt 0:00:08]} 13. Qf5+ {[%emt 0:05:34]} e6 {[%emt 0:17:04]} 14. Qa5 {[%emt 0:14:49]} Nd5 {[%emt 0:01:44]} 15. Qxb6 {[%emt 0:00:07]} axb6 {[%emt 0:00:04]} 16. Bd2 {[%emt 0:00:05]} Nb4 {[%emt 0:03:13]} 17. Kd1 {[%emt 0:01:40]} h5 {[%emt 0:13:56]} 18. h4 {[%emt 0:02:14]} f5 {[%emt 0:03:35]} 19. Be2 {[%emt 0:05:02]} Nd5 {[%emt 0:00:15]} 20. Bf3 {[%emt 0:05:35]} Bg7 {[%emt 0:02:59]} 21. Rb1 {[%emt 0:05:21]} b5 {[%emt 0:05:13]} 22. g3 {[%emt 0:01:39]} Rde8 {[%emt 0:09:22]} 23. c3 {[%emt 0:03:58]} Nf6 {[%emt 0:00:52]} 24. a3 {[%emt 0:11:17]} Ng4 {[%emt 0:00:32]} 25. Ke2 {[%emt 0:00:29]} e5 {[%emt 0:02:08]} 26. Rhe1 {[%emt 0:02:22]} Rd8 {[%emt 0:00:29]} 27. Rbd1 {[%emt 0:01:09]} Rd7 {[%emt 0:01:18]} 28. Bg2 {[%emt 0:03:14]} Rhd8 {[%emt 0:10:20]} 29. f3 {[%emt 0:03:51]} Rxd3 {[%emt 0:00:52]} 30. fxg4 {[%emt 0:00:12]} Rxg3 {[%emt 0:05:18]} 31. Rg1 {[%emt 0:01:15]} hxg4 {[%emt 0:00:52]} 32. Be4 {[%emt 0:02:15]} fxe4 {[%emt 0:00:10]} 33. Rxg3 {[%emt 0:00:07]} f5 {[%emt 0:00:02]} 34. Bg5 {[%emt 0:02:40]} Rxd1 {[%emt 0:01:56]} 35. Kxd1 {[%emt 0:00:05]} Kd7 {[%emt 0:00:03]} 36. Ke2 {[%emt 0:03:37]} Ke6 {[%emt 0:00:02]} 37. Rg1 {[%emt 0:02:20]} c5 {[%emt 0:02:58]} 38. h5 {[%emt 0:03:20]} Kf7 {[%emt 0:01:47]} 39. Rf1 {[%emt 0:04:05]} Ke6 {[%emt 0:00:31]} 40. h6 {[%emt 0:00:28]} Bh8 {[%emt 0:00:21]} 41. Rd1 {[%emt 0:30:42]} 1-0

[Event "Vienna Chess Open 2019"]
[Site "Vienna"]
[Date "2019.08.18"]
[Round "2.4"]
[White "Brod, Manfred"]
[Black "Mesaros, Florian"]
[Result "0-1"]
[ECO "B92"]
[WhiteElo "2214"]
[BlackElo "2420"]
[Annotator "ChessBase"]
[PlyCount "98"]
[EventDate "2019.08.17"]
[EventType "swiss"]
[EventCountry "AUT"]
[SourceTitle "playchess.com"]
[Source "ChessBase"]
[SourceQuality "1"]
[TimeControl "40/5400+30:1800+30"]

1. e4 {[%emt 0:10:07]} c5 {[%emt 0:00:00]} 2. Nf3 {[%emt 0:00:03]} d6 {[%emt 0:00:00]} 3. d4 {[%emt 0:00:03]} cxd4 {[%emt 0:00:05]} 4. Nxd4 {[%emt 0:00:02]} Nf6 {[%emt 0:00:09]} 5. Nc3 {[%emt 0:00:02]} a6 {[%emt 0:00:05]} 6. Be2 {[%emt 0:00:02]} e5 {[%emt 0:00:06]} 7. Nb3 {[%emt 0:00:03]} Be7 {[%emt 0:00:07]} 8. Be3 {[%emt 0:00:06]} Be6 {[%emt 0:00:14]} 9. Nd5 {[%emt 0:01:03]} Nbd7 {[%emt 0:02:02]} 10. Qd3 {[%emt 0:00:16]} Bxd5 {[%emt 0:01:00]} 11. exd5 {[%emt 0:00:09]} O-O {[%emt 0:00:40]} 12. g4 {[%emt 0:00:35]} Rc8 {[%emt 0:06:12]} 13. O-O-O {[%emt 0:03:00]} Qc7 {[%emt 0:00:53]} 14. c3 {[%emt 0:10:12]} Nb6 {[%emt 0:03:45]} 15. Bf3 {[%emt 0:02:22]} Rfe8 {[%emt 0:11:16]} 16. g5 {[%emt 0:05:13]} e4 {[%emt 0:03:40]} 17. Bxe4 {[%emt 0:07:31]} Nxe4 {[%emt 0:00:15]} 18. Qxe4 {[%emt 0:00:02]} Bxg5 {[%emt 0:00:16]} 19. Qd3 {[%emt 0:01:07]} Bxe3+ {[%emt 0:03:06]} 20. fxe3 {[%emt 0:01:05]} Re5 {[%emt 0:02:03]} 21. e4 {[%emt 0:02:06]} Rce8 {[%emt 0:09:17]} 22. Nd2 {[%emt 0:00:36]} Nd7 {[%emt 0:03:17]} 23. Nf3 {[%emt 0:23:57]} R5e7 {[%emt 0:11:53]} 24. Qc2 {[%emt 0:05:44]} b5 {[%emt 0:10:28]} 25. Rhg1 {[%emt 0:01:19]} g6 {[%emt 0:03:03]} 26. Rd4 {[%emt 0:03:56]} Ne5 {[%emt 0:02:41]} 27. Nxe5 {[%emt 0:05:31]} Rxe5 {[%emt 0:00:11]} 28. Rf1 {[%emt 0:00:11]} Qe7 {[%emt 0:05:13]} 29. Qf2 {[%emt 0:00:50]} Qg5+ {[%emt 0:03:55]} 30. Kb1 {[%emt 0:00:31]} f5 {[%emt 0:06:51]} 31. h4 {[%emt 0:04:43]} Qh5 {[%emt 0:04:21]} 32. exf5 {[%emt 0:04:07]} Rxf5 {[%emt 0:01:08]} 33. Rf4 {[%emt 0:05:04]} Ref8 {[%emt 0:01:10]} 34. Rxf5 {[%emt 0:03:58]} Rxf5 {[%emt 0:00:15]} 35. Qe1 {[%emt 0:00:10]} Rxf1 {[%emt 0:00:39]} 36. Qxf1 {[%emt 0:00:01]} Qxh4 {[%emt 0:01:34]} 37. Qe2 {[%emt 0:01:57]} Qh1+ {[%emt 0:03:25]} 38. Kc2 {[%emt 0:00:01]} Qxd5 {[%emt 0:00:27]} 39. Qe8+ {[%emt 0:00:02]} Kg7 {[%emt 0:00:07]} 40. Qe7+ {[%emt 0:00:02]} Qf7 {[%emt 0:02:56]} 41. Qxd6 {[%emt 0:30:34]} h5 {[%emt 0:04:04]} 42. Qxa6 {[%emt 0:00:00]} h4 {[%emt 0:00:31]} 43. a4 {[%emt 0:00:00]} Qf5+ {[%emt 0:02:43]} 44. Kd2 {[%emt 0:00:00]} h3 {[%emt 0:04:51]} 45. Qb7+ {[%emt 0:00:00]} Kh6 {[%emt 0:00:40]} 46. Qb8 {[%emt 0:00:00]} Qf2+ {[%emt 0:02:18]} 47. Kd3 {[%emt 0:00:00]} h2 {[%emt 0:00:24]} 48. Qh8+ {[%emt 0:00:00]} Kg5 {[%emt 0:00:02]} 49. Qd8+ {[%emt 0:00:00]} Kg4 {[%emt 0:00:18] Kd4} 0-1

[Event "Vienna Chess Open 2019"]
[Site "Vienna"]
[Date "2019.08.18"]
[Round "2.5"]
[White "Abdumalik, Zhansaya"]
[Black "Binder, Moriz"]
[Result "1-0"]
[ECO "A06"]
[WhiteElo "2457"]
[BlackElo "2224"]
[Annotator "ChessBase"]
[PlyCount "69"]
[EventDate "2019.08.17"]
[EventType "swiss"]
[EventCountry "AUT"]
[SourceTitle "playchess.com"]
[Source "ChessBase"]
[SourceQuality "1"]
[TimeControl "40/5400+30:1800+30"]

1. Nf3 {[%emt 0:00:00]} d5 {[%emt 0:00:00]} 2. g3 {[%emt 0:00:00]} Nf6 {[%emt 0:00:00]} 3. Bg2 {[%emt 0:00:08]} e6 {[%emt 0:00:03]} 4. O-O {[%emt 0:02:04]} Be7 {[%emt 0:00:06]} 5. c4 {[%emt 0:01:01]} O-O {[%emt 0:00:25]} 6. d3 {[%emt 0:03:06]} c5 {[%emt 0:04:24]} 7. b3 {[%emt 0:11:03]} b6 {[%emt 0:04:01]} 8. Bb2 {[%emt 0:03:38]} Bb7 {[%emt 0:00:43]} 9. cxd5 {[%emt 0:02:25]} Bxd5 {[%emt 0:01:36]} 10. Nbd2 {[%emt 0:01:53]} Nbd7 {[%emt 0:01:42]} 11. Re1 {[%emt 0:01:41]} Rc8 {[%emt 0:01:38]} 12. e4 {[%emt 0:04:12]} Bb7 {[%emt 0:03:16]} 13. Qe2 {[%emt 0:01:46]} Qc7 {[%emt 0:02:09]} 14. Rac1 {[%emt 0:03:34]} Qb8 {[%emt 0:04:17]} 15. Nc4 {[%emt 0:03:56]} Rfd8 {[%emt 0:04:53]} 16. h4 {[%emt 0:03:14]} b5 {[%emt 0:06:01]} 17. Ne3 {[%emt 0:04:19]} Nb6 {[%emt 0:00:22]} 18. Ne5 {[%emt 0:04:09]} Nfd7 {[%emt 0:09:31]} 19. N5g4 {[%emt 0:06:38]} h5 {[%emt 0:07:21]} 20. Nh2 {[%emt 0:07:41]} Bf6 {[%emt 0:00:45]} 21. Bxf6 {[%emt 0:03:05]} Nxf6 {[%emt 0:00:15]} 22. e5 {[%emt 0:00:35]} Ne8 {[%emt 0:03:31]} 23. Qxh5 {[%emt 0:01:50]} Bxg2 {[%emt 0:01:52]} 24. Nxg2 {[%emt 0:01:02]} Rxd3 {[%emt 0:16:42]} 25. Nf4 {[%emt 0:01:55]} Rdd8 {[%emt 0:02:58]} 26. Nf3 {[%emt 0:01:13]} g6 {[%emt 0:02:58]} 27. Nxg6 {[%emt 0:01:59]} fxg6 {[%emt 0:00:15]} 28. Qxg6+ {[%emt 0:00:03]} Kh8 {[%emt 0:00:20]} 29. Qh6+ {[%emt 0:01:39]} Kg8 {[%emt 0:00:14]} 30. Qxe6+ {[%emt 0:01:24]} Kh8 {[%emt 0:00:28]} 31. Qh6+ {[%emt 0:02:47]} Kg8 {[%emt 0:00:06]} 32. Re4 {[%emt 0:00:38]} Rd7 {[%emt 0:01:00]} 33. Rf4 {[%emt 0:01:45]} Rg7 {[%emt 0:02:40]} 34. Qe6+ {[%emt 0:01:02]} Kh8 {[%emt 0:00:35]} 35. Rf8+ {[%emt 0:00:26]} 1-0

[Event "Vienna Chess Open 2019"]
[Site "Vienna"]
[Date "2019.08.18"]
[Round "2.5"]
[White "Ravi, Teja S."]
[Black "Tomaszewski, Roman"]
[Result "1-0"]
[ECO "D27"]
[WhiteElo "2420"]
[BlackElo "2205"]
[Annotator "NA"]
[PlyCount "53"]
[EventDate "2019.08.17"]
[EventType "swiss"]
[EventCountry "AUT"]
[SourceTitle "playchess.com"]
[Source "ChessBase"]
[SourceQuality "1"]
[TimeControl "40/5400+30:1800+30"]

1. d4 {[%emt 0:00:00]} Nf6 {[%emt 0:00:00]} 2. Nf3 {[%emt 0:00:24]} d5 {[%emt 0:00:45]} 3. c4 {[%emt 0:00:42]} dxc4 {[%emt 0:00:23]} 4. e3 {[%emt 0:00:05]} e6 {[%emt 0:02:04]} 5. Bxc4 {[%emt 0:00:06]} c5 {[%emt 0:01:23]} 6. O-O {[%emt 0:00:09]} a6 {[%emt 0:00:06]} 7. b3 {[%emt 0:01:28]} Nc6 {[%emt 0:10:47]} 8. Bb2 {[%emt 0:01:04]} Bd6 {[%emt 0:18:49]} 9. dxc5 {[%emt 0:06:59]} Bxc5 {[%emt 0:00:07]} 10. Qc2 {[%emt 0:04:04]} Qe7 {[%emt 0:00:58]} 11. Nbd2 {[%emt 0:06:30]} Nb4 {[%emt 0:05:49]} 12. Qb1 {[%emt 0:07:03]} b5 {[%emt 0:09:12]} 13. Be2 {[%emt 0:00:15]} Bb7 {[%emt 0:00:08]} 14. Rc1 {[%emt 0:07:22]} O-O {[%emt 0:11:16]} 15. Ng5 {[%emt 0:15:49]} Nbd5 {[%emt 0:16:04]} 16. Bf3 {[%emt 0:03:16]} Rfc8 {[%emt 0:10:13]} 17. e4 {[%emt 0:07:46]} Bxf2+ {[%emt 0:04:07]} 18. Kxf2 {[%emt 0:03:28]} Ng4+ {[%emt 0:00:12]} 19. Bxg4 {[%emt 0:00:38]} Qxg5 {[%emt 0:00:03]} 20. exd5 {[%emt 0:03:43]} Qxd2+ {[%emt 0:00:12]} 21. Be2 {[%emt 0:00:19]} Bxd5 {[%emt 0:02:25]} 22. Be5 {[%emt 0:03:54]} f6 {[%emt 0:02:52]} 23. Qb2 {[%emt 0:00:19]} Qg5 {[%emt 0:00:32]} 24. Bg3 {[%emt 0:00:01]} h5 {[%emt 0:00:29]} 25. h4 {[%emt 0:00:41]} Qf5+ {[%emt 0:00:23]} 26. Kg1 {[%emt 0:00:11]} Qe4 {[%emt 0:01:27]} 27. Bxh5 {[%emt 0:00:55]} 1-0

[Event "Vienna Chess Open 2019"]
[Site "Vienna"]
[Date "2019.08.18"]
[Round "2.5"]
[White "Curien, Nicolas"]
[Black "Nasuta, Grzegorz"]
[Result "0-1"]
[ECO "D00"]
[WhiteElo "2259"]
[BlackElo "2533"]
[Annotator "ChessBase"]
[PlyCount "82"]
[EventDate "2019.08.17"]
[EventType "swiss"]
[EventCountry "AUT"]
[SourceTitle "playchess.com"]
[Source "ChessBase"]
[SourceQuality "1"]
[TimeControl "40/5400+30:1800+30"]

1. d4 {[%emt 0:00:00]} d5 2. Nc3 {[%emt 0:00:00]} Nf6 {[%emt 0:00:00]} 3. Bf4 {[%emt 0:00:15]} c5 {[%emt 0:00:00]} 4. e3 {[%emt 0:00:07]} cxd4 {[%emt 0:00:00]} 5. exd4 {[%emt 0:00:06]} a6 {[%emt 0:00:02]} 6. Nf3 {[%emt 0:02:39]} Nc6 {[%emt 0:00:39]} 7. Ne5 {[%emt 0:00:21]} e6 {[%emt 0:01:48]} 8. Nxc6 {[%emt 0:05:10]} bxc6 {[%emt 0:01:07]} 9. Na4 {[%emt 0:00:19]} Nd7 {[%emt 0:09:04]} 10. Be2 {[%emt 0:14:26]} c5 {[%emt 0:25:04]} 11. O-O {[%emt 0:02:55]} Qf6 {[%emt 0:13:17]} 12. Be3 {[%emt 0:06:06]} cxd4 {[%emt 0:00:46]} 13. Bxd4 {[%emt 0:02:19]} e5 {[%emt 0:00:29]} 14. Bc3 {[%emt 0:11:16]} d4 {[%emt 0:00:12]} 15. f4 {[%emt 0:12:11]} dxc3 {[%emt 0:12:32]} 16. fxe5 {[%emt 0:00:16]} Qc6 {[%emt 0:04:39]} 17. Bf3 {[%emt 0:17:41]} Qxa4 {[%emt 0:00:11]} 18. b3 {[%emt 0:00:41]} Bc5+ {[%emt 0:08:51]} 19. Kh1 {[%emt 0:00:17]} Qd4 {[%emt 0:00:05]} 20. Bxa8 {[%emt 0:01:03]} O-O {[%emt 0:00:09]} 21. e6 {[%emt 0:01:20]} fxe6 {[%emt 0:00:41]} 22. Rxf8+ {[%emt 0:01:24]} Nxf8 {[%emt 0:00:35]} 23. Qf3 {[%emt 0:01:26]} Bd7 {[%emt 0:05:39]} 24. Bc6 {[%emt 0:02:51]} Bxc6 {[%emt 0:07:08]} 25. Qxc6 {[%emt 0:00:05]} Bd6 {[%emt 0:00:14]} 26. Qf3 {[%emt 0:04:51]} Qe5 {[%emt 0:04:39]} 27. g3 {[%emt 0:00:09]} Nd7 {[%emt 0:02:29]} 28. Qa8+ {[%emt 0:07:34]} Kf7 {[%emt 0:00:10]} 29. Rf1+ {[%emt 0:00:41]} Nf6 {[%emt 0:00:04]} 30. Qb7+ {[%emt 0:00:24]} Kg6 {[%emt 0:02:03]} 31. Qf3 {[%emt 0:00:23]} Qd5 {[%emt 0:00:19]} 32. Kg2 {[%emt 0:00:36]} Be5 {[%emt 0:01:34]} 33. Rd1 {[%emt 0:00:53]} Qxf3+ {[%emt 0:00:07]} 34. Kxf3 {[%emt 0:00:03]} Kf5 {[%emt 0:00:58]} 35. Rd8 {[%emt 0:00:35]} Nd5 {[%emt 0:00:09]} 36. a3 {[%emt 0:01:55]} Bd4 {[%emt 0:00:36]} 37. Ke2 {[%emt 0:01:56]} Ke4 {[%emt 0:00:36]} 38. Rd6 {[%emt 0:00:34]} e5 {[%emt 0:00:03]} 39. Rxa6 {[%emt 0:01:45]} Ne3 {[%emt 0:00:05]} 40. b4 {[%emt 0:01:35]} Nxc2 {[%emt 0:00:09]} 41. b5 {[%emt 0:04:47]} Be3 {[%emt 0:02:07]} 0-1

[Event "Vienna Chess Open 2019"]
[Site "Vienna"]
[Date "2019.08.18"]
[Round "2.6"]
[White "Shengelia, David"]
[Black "Pisu, Robert-Daniel"]
[Result "1-0"]
[ECO "A05"]
[WhiteElo "2523"]
[BlackElo "2252"]
[Annotator "ChessBase"]
[PlyCount "66"]
[EventDate "2019.08.17"]
[EventType "swiss"]
[EventCountry "AUT"]
[SourceTitle "playchess.com"]
[Source "ChessBase"]
[SourceQuality "1"]
[TimeControl "40/5400+30:1800+30"]

1. Nf3 {[%emt 0:00:00]} Nf6 {[%emt 0:00:00]} 2. b3 {[%emt 0:00:10]} d5 {[%emt 0:01:51]} 3. Bb2 {[%emt 0:00:24]} Bf5 {[%emt 0:04:50]} 4. g3 {[%emt 0:07:30]} h6 {[%emt 0:03:57]} 5. Bg2 {[%emt 0:00:35]} e6 {[%emt 0:00:19]} 6. d3 {[%emt 0:00:31]} Be7 {[%emt 0:12:08]} 7. Nbd2 {[%emt 0:04:57]} c5 {[%emt 0:12:56]} 8. e4 {[%emt 0:13:13]} dxe4 {[%emt 0:12:14]} 9. dxe4 {[%emt 0:03:27]} Bh7 {[%emt 0:00:12]} 10. Qe2 {[%emt 0:05:40]} O-O {[%emt 0:05:08]} 11. O-O {[%emt 0:00:51]} Nc6 {[%emt 0:01:20]} 12. e5 {[%emt 0:06:48]} Nd7 {[%emt 0:05:51]} 13. c4 {[%emt 0:19:21]} Qc7 {[%emt 0:01:57]} 14. a3 {[%emt 0:00:22]} Rfd8 {[%emt 0:03:45]} 15. Qe3 {[%emt 0:02:08]} a6 {[%emt 0:03:26]} 16. h4 {[%emt 0:01:34]} Bf5 {[%emt 0:06:16]} 17. Rfe1 {[%emt 0:03:48]} Rab8 {[%emt 0:05:12]} 18. Bf1 {[%emt 0:07:29]} b6 {[%emt 0:05:53]} 19. Qf4 {[%emt 0:02:42]} Nf8 {[%emt 0:01:35]} 20. h5 {[%emt 0:04:16]} Nd4 {[%emt 0:06:50]} 21. Bxd4 {[%emt 0:03:22]} cxd4 {[%emt 0:00:07]} 22. Ne4 {[%emt 0:05:19]} Nd7 {[%emt 0:03:13]} 23. b4 {[%emt 0:02:55]} a5 {[%emt 0:00:57]} 24. Nxd4 {[%emt 0:00:43]} Bh7 {[%emt 0:01:29]} 25. Nd6 {[%emt 0:00:44]} Nxe5 {[%emt 0:00:30]} 26. N4b5 {[%emt 0:01:42]} Qd7 {[%emt 0:00:16]} 27. Rad1 {[%emt 0:00:28]} f6 {[%emt 0:00:39]} 28. Bh3 {[%emt 0:00:29]} Bxd6 {[%emt 0:00:38]} 29. Rxd6 {[%emt 0:00:24]} Qe7 {[%emt 0:00:08]} 30. Bxe6+ {[%emt 0:01:55]} Kh8 {[%emt 0:00:04]} 31. Red1 {[%emt 0:01:01]} Nd3 {[%emt 0:01:16]} 32. Qd4 {[%emt 0:00:09]} Rxd6 {[%emt 0:00:31]} 33. Qxd6 {[%emt 0:00:05]} Qxd6 {[%emt 0:00:00]} 1-0

[Event "Vienna Chess Open 2019"]
[Site "Vienna"]
[Date "2019.08.18"]
[Round "2.6"]
[White "Handler, Lukas"]
[Black "Bartos, Jan"]
[Result "1-0"]
[ECO "D37"]
[WhiteElo "2411"]
[BlackElo "2203"]
[Annotator "NA"]
[PlyCount "63"]
[EventDate "2019.08.17"]
[EventType "swiss"]
[EventCountry "AUT"]
[SourceTitle "playchess.com"]
[Source "ChessBase"]
[SourceQuality "1"]
[TimeControl "40/5400+30:1800+30"]

1. d4 {[%emt 0:00:00]} Nf6 {[%emt 0:00:00]} 2. c4 {[%emt 0:00:00]} e6 {[%emt 0:00:00]} 3. Nf3 {[%emt 0:00:00]} d5 {[%emt 0:00:00]} 4. Nc3 {[%emt 0:00:00]} dxc4 {[%emt 0:00:00]} 5. e4 {[%emt 0:00:17]} Bb4 {[%emt 0:00:04]} 6. Bg5 {[%emt 0:00:14]} h6 {[%emt 0:00:11]} 7. Bxf6 {[%emt 0:00:13]} Qxf6 {[%emt 0:00:05]} 8. Bxc4 {[%emt 0:01:52]} O-O {[%emt 0:00:08]} 9. O-O {[%emt 0:01:54]} c5 {[%emt 0:00:40]} 10. e5 {[%emt 0:00:17]} Qd8 {[%emt 0:00:05]} 11. Ne4 {[%emt 0:02:00]} cxd4 {[%emt 0:00:18]} 12. Qe2 {[%emt 0:00:28]} Be7 {[%emt 0:01:42]} 13. Rfd1 {[%emt 0:00:07]} Qa5 {[%emt 0:00:45]} 14. a3 {[%emt 0:07:23]} Rd8 {[%emt 0:09:05]} 15. Ng3 {[%emt 0:12:04]} Bd7 {[%emt 0:03:42]} 16. b4 {[%emt 0:25:40]} Qb6 {[%emt 0:04:46]} 17. Bd3 {[%emt 0:03:10]} Be8 {[%emt 0:01:04]} 18. Qe4 {[%emt 0:04:24]} g6 {[%emt 0:01:43]} 19. h4 {[%emt 0:00:40]} Nd7 {[%emt 0:02:40]} 20. Qf4 {[%emt 0:03:05]} Kg7 {[%emt 0:06:00]} 21. Nh2 {[%emt 0:08:34]} f5 {[%emt 0:07:36]} 22. exf6+ {[%emt 0:01:29]} Nxf6 {[%emt 0:00:14]} 23. Ng4 {[%emt 0:01:11]} Nxg4 {[%emt 0:00:11]} 24. Qxg4 {[%emt 0:00:03]} Rd5 {[%emt 0:11:15]} 25. Re1 {[%emt 0:11:15]} h5 {[%emt 0:01:52]} 26. Nxh5+ {[%emt 0:02:50]} Rxh5 {[%emt 0:04:37]} 27. Rxe6 {[%emt 0:00:05]} Qxe6 {[%emt 0:00:17]} 28. Qxe6 {[%emt 0:00:05]} Bxh4 {[%emt 0:00:27]} 29. Rc1 {[%emt 0:00:44]} Rg5 {[%emt 0:05:56]} 30. Rc7+ {[%emt 0:02:49]} Kh6 {[%emt 0:00:12]} 31. Qe4 {[%emt 0:00:26]} Rh5 {[%emt 0:05:06]} 32. Qf4+ {[%emt 0:00:14]} 1-0

[Event "Vienna Chess Open 2019"]
[Site "Vienna"]
[Date "2019.08.18"]
[Round "2.6"]
[White "Caglar, Sila"]
[Black "Ankit, R. Rajpara"]
[Result "0-1"]
[ECO "C50"]
[WhiteElo "2240"]
[BlackElo "2454"]
[Annotator "ChessBase"]
[PlyCount "58"]
[EventDate "2019.08.17"]
[EventType "swiss"]
[EventCountry "AUT"]
[SourceTitle "playchess.com"]
[Source "ChessBase"]
[SourceQuality "1"]
[TimeControl "40/5400+30:1800+30"]

1. e4 {[%emt 0:00:00]} e5 {[%emt 0:00:00]} 2. Nf3 {[%emt 0:00:24]} Nc6 {[%emt 0:00:00]} 3. Bc4 {[%emt 0:03:52]} Bc5 {[%emt 0:00:21]} 4. d3 {[%emt 0:01:59]} Nf6 {[%emt 0:00:19]} 5. Bg5 {[%emt 0:00:58]} h6 {[%emt 0:01:17]} 6. Bh4 {[%emt 0:00:49]} Be7 {[%emt 0:04:29]} 7. c3 {[%emt 0:02:14]} d6 {[%emt 0:02:16]} 8. a4 {[%emt 0:01:24]} Nh5 {[%emt 0:04:48]} 9. Bxe7 {[%emt 0:09:17]} Qxe7 {[%emt 0:00:16]} 10. g3 {[%emt 0:06:25]} Nf6 {[%emt 0:04:57]} 11. Nbd2 {[%emt 0:02:38]} Be6 {[%emt 0:02:48]} 12. Qe2 {[%emt 0:05:31]} O-O {[%emt 0:04:58]} 13. Nh4 {[%emt 0:07:36]} d5 {[%emt 0:02:40]} 14. Bb3 {[%emt 0:01:47]} Rad8 {[%emt 0:03:18]} 15. O-O {[%emt 0:02:33]} dxe4 {[%emt 0:01:41]} 16. Bxe6 {[%emt 0:11:24]} exd3 {[%emt 0:00:17]} 17. Bxf7+ {[%emt 0:00:17]} Qxf7 {[%emt 0:02:08]} 18. Qe3 {[%emt 0:03:27]} g5 {[%emt 0:13:33]} 19. Ng2 {[%emt 0:12:04]} Ng4 {[%emt 0:11:32]} 20. Qe1 {[%emt 0:01:49]} e4 {[%emt 0:10:02]} 21. Nxe4 {[%emt 0:20:30]} Qf3 {[%emt 0:03:57]} 22. Nd2 {[%emt 0:02:01]} Qe2 {[%emt 0:01:05]} 23. f3 {[%emt 0:01:03]} Nce5 {[%emt 0:08:33]} 24. fxg4 {[%emt 0:01:23]} Rxf1+ {[%emt 0:00:18]} 25. Qxf1 {[%emt 0:00:07]} Qxd2 {[%emt 0:00:16]} 26. Rd1 {[%emt 0:00:52]} Qxb2 {[%emt 0:00:48]} 27. Qf6 {[%emt 0:00:31]} Qb6+ {[%emt 0:02:42]} 28. Qxb6 {[%emt 0:00:22]} axb6 {[%emt 0:00:05]} 29. Ne3 {[%emt 0:00:36]} Ra8 {[%emt 0:00:35]} 0-1

[Event "Vienna Chess Open 2019"]
[Site "Vienna"]
[Date "2019.08.18"]
[Round "2.7"]
[White "Buckels, Valentin"]
[Black "Arndt, Stefan"]
[Result "1-0"]
[ECO "A04"]
[WhiteElo "2453"]
[BlackElo "2222"]
[Annotator "ChessBase"]
[PlyCount "89"]
[EventDate "2019.08.17"]
[EventType "swiss"]
[EventCountry "AUT"]
[SourceTitle "playchess.com"]
[Source "ChessBase"]
[SourceQuality "1"]
[TimeControl "40/5400+30:1800+30"]

1. Nf3 {[%emt 0:00:00]} f5 {[%emt 0:00:00]} 2. g3 {[%emt 0:00:15]} Nf6 {[%emt 0:00:00]} 3. Bg2 {[%emt 0:00:41]} d6 {[%emt 0:00:17]} 4. d3 {[%emt 0:03:23]} e5 {[%emt 0:00:42]} 5. O-O {[%emt 0:02:33]} Be7 {[%emt 0:01:06]} 6. e4 {[%emt 0:00:48]} fxe4 {[%emt 0:01:56]} 7. dxe4 {[%emt 0:00:32]} Bg4 {[%emt 0:10:37]} 8. h3 {[%emt 0:06:33]} Bh5 {[%emt 0:00:47]} 9. Qd3 {[%emt 0:00:55]} Qd7 {[%emt 0:02:18]} 10. Nh4 {[%emt 0:08:45]} Nc6 {[%emt 0:02:25]} 11. Nf5 {[%emt 0:02:06]} Rg8 {[%emt 0:09:24]} 12. a3 {[%emt 0:04:16]} O-O-O {[%emt 0:03:46]} 13. c4 {[%emt 0:02:56]} Rdf8 {[%emt 0:15:02]} 14. b4 {[%emt 0:01:48]} Bf7 {[%emt 0:08:32]} 15. Be3 {[%emt 0:02:27]} Kb8 {[%emt 0:03:10]} 16. Nc3 {[%emt 0:02:23]} Be6 {[%emt 0:01:00]} 17. Nxe7 {[%emt 0:07:59]} Nxe7 {[%emt 0:00:53]} 18. Kh2 {[%emt 0:00:24]} g5 {[%emt 0:00:48]} 19. Rfd1 {[%emt 0:04:04]} h5 {[%emt 0:01:04]} 20. c5 {[%emt 0:01:10]} Nc8 {[%emt 0:02:28]} 21. b5 {[%emt 0:03:52]} Qh7 {[%emt 0:09:18]} 22. b6 {[%emt 0:06:21]} cxb6 {[%emt 0:00:32]} 23. cxb6 {[%emt 0:04:01]} a6 {[%emt 0:00:12]} 24. f3 {[%emt 0:05:42]} g4 {[%emt 0:02:37]} 25. fxg4 {[%emt 0:01:22]} h4 {[%emt 0:02:56]} 26. g5 {[%emt 0:07:08]} hxg3+ {[%emt 0:00:08]} 27. Kxg3 {[%emt 0:03:32]} Nh5+ {[%emt 0:08:24]} 28. Kh2 {[%emt 0:00:01]} Nf4 {[%emt 0:01:08]} 29. Bxf4 {[%emt 0:04:24]} exf4 {[%emt 0:02:05]} 30. e5 {[%emt 0:01:32]} Qxd3 {[%emt 0:01:38]} 31. Rxd3 {[%emt 0:00:04]} Rxg5 {[%emt 0:01:10]} 32. exd6 {[%emt 0:02:10]} Rfg8 {[%emt 0:03:29]} 33. Be4 {[%emt 0:01:25]} Bd7 {[%emt 0:03:34]} 34. Rf1 {[%emt 0:01:52]} f3 {[%emt 0:00:32]} 35. Rdxf3 {[%emt 0:00:54]} Nxd6 {[%emt 0:01:12]} 36. Rf8+ {[%emt 0:00:24]} Bc8 {[%emt 0:00:57]} 37. Bd5 {[%emt 0:01:10]} R8g6 {[%emt 0:00:58]} 38. R8f6 {[%emt 0:07:26]} Rxf6 {[%emt 0:00:28]} 39. Rxf6 {[%emt 0:00:02]} Nf5 {[%emt 0:00:43]} 40. Ne4 {[%emt 0:01:27]} Rg7 {[%emt 0:00:38]} 41. Rf8 {[%emt 0:02:40]} Re7 {[%emt 0:01:51]} 42. Nc5 {[%emt 0:06:39]} Nd6 {[%emt 0:05:44]} 43. Rd8 {[%emt 0:02:00]} Nf7 {[%emt 0:01:44]} 44. Bxf7 {[%emt 0:02:28]} Rxf7 {[%emt 0:00:04]} 45. h4 1-0